bitfinex/quotes_BTCUSD_20250303
["timestamp","ask_amount","ask_price","bid_price","bid_amount"]
[1741023311075,0.08852,90739.0,90720.0,0.165343]
[1741023311296,0.08852,90739.0,90716.0,0.0003402]
[1741023311297,0.00192899,90738.0,90716.0,0.0003402]
[1741023311833,0.00192899,90738.0,90737.0,0.002]
[1741023312854,0.08744899,90738.0,90737.0,0.002]
[1741023313070,0.08744899,90738.0,90719.0,0.00045862]
[1741023313217,0.08744899,90738.0,90719.0,0.30045862]
[1741023313419,0.10472607,90738.0,90728.0,0.165327]
[1741023313821,0.10472607,90738.0,90724.0,0.220448]
[1741023314155,0.10472607,90738.0,90720.0,0.220458]
[1741023314391,0.10472607,90738.0,90719.0,0.00045862]
[1741023314565,0.0824,90737.0,90720.0,0.165343]
[1741023314799,0.00192908,90736.0,90719.0,0.00045862]
[1741023314968,0.00192908,90736.0,90727.0,0.165331]
[1741023315169,0.00192908,90736.0,90724.0,0.165336]
[1741023315983,0.00192908,90736.0,90727.0,0.16533]
[1741023316190,0.31751274,90735.0,90720.0,0.18727262]
[1741023316583,0.31751274,90735.0,90734.0,0.165318]
[1741023317185,0.31751274,90735.0,90733.0,0.165319]
[1741023317366,0.31751274,90735.0,90722.0,0.220453]
[1741023317775,0.31751274,90735.0,90734.0,0.001]
[1741023318215,0.31751274,90735.0,90726.0,0.220443]
[1741023318408,0.31751274,90735.0,90733.0,0.001]
[1741023318769,0.31751274,90735.0,90733.0,0.16532]
[1741023318974,0.31751274,90735.0,90731.0,0.220429]
[1741023319234,0.31751274,90735.0,90733.0,0.16532]
[1741023319423,0.31751274,90735.0,90731.0,0.220429]
[1741023319855,0.08552,90738.0,90728.0,0.220438]
[1741023320006,0.08552,90738.0,90730.0,0.165325]
[1741023320214,0.08552,90738.0,90734.0,0.001]
[1741023320423,0.08552,90738.0,90730.0,0.165325]
[1741023320651,0.0019289,90737.0,90715.0,0.2208082]
[1741023320903,0.0019289,90737.0,90731.0,0.001]
[1741023321052,0.0019289,90737.0,90734.0,0.0003404]
[1741023321435,0.08552,90738.0,90734.0,0.0003404]
[1741023321891,0.00192912,90737.0,90734.0,0.0003404]
[1741023322122,0.0804,90736.0,90734.0,0.0003404]
[1741023322310,0.03444354,90735.0,90734.0,0.0003404]
[1741023324191,0.04979167,90735.0,90734.0,0.0003404]
[1741023325351,0.04979167,90735.0,90734.0,0.1656584]
[1741023325352,0.01727747,90735.0,90734.0,0.1656584]
[1741023325964,0.01727747,90735.0,90734.0,0.0003404]
[1741023326754,0.01920645,90735.0,90734.0,0.0003404]
[1741023327396,0.00192898,90735.0,90734.0,0.0003404]
[1741023327599,0.03444789,90735.0,90734.0,0.0003404]
[1741023327804,0.15741891,90735.0,90734.0,0.0003404]
[1741023329788,0.15841891,90735.0,90734.0,0.0003404]
[1741023330568,0.11251891,90735.0,90734.0,0.0003404]
[1741023331711,0.11444795,90735.0,90734.0,0.0003404]
[1741023332055,0.11888877,90735.0,90734.0,0.0003404]
[1741023332870,0.11988877,90735.0,90734.0,0.0003404]
[1741023333796,0.13142362,90735.0,90734.0,0.0003404]
[1741023333918,0.13142379,90735.0,90734.0,0.0003404]
[1741023334129,0.05049458,90735.0,90734.0,0.0003404]
[1741023334539,0.05242384,90735.0,90734.0,0.0003404]
[1741023334737,0.05049458,90735.0,90734.0,0.0003404]
[1741023335212,0.05242377,90735.0,90734.0,0.0003404]
[1741023335411,0.05049458,90735.0,90734.0,0.0003404]
[1741023335527,0.05242378,90735.0,90734.0,0.0003404]
[1741023335736,0.21773978,90735.0,90734.0,0.0003404]
[1741023336097,0.0697023,90735.0,90734.0,0.0003404]
[1741023337607,0.05242378,90735.0,90734.0,0.0003404]
[1741023338668,0.08374816,90735.0,90734.0,0.0003404]
[1741023338870,0.05242378,90735.0,90734.0,0.0003404]
[1741023339072,0.12628893,90735.0,90734.0,0.1656584]
[1741023339269,0.12435973,90735.0,90734.0,0.0003404]
[1741023339517,0.09184082,90735.0,90734.0,0.0003404]
[1741023339668,0.00544082,90735.0,90734.0,0.1656584]
[1741023339886,0.0854,90735.0,90734.0,0.1656584]
[1741023340085,0.0001702,90744.0,90734.0,0.1656584]
[1741023340290,0.001,90735.0,90734.0,0.1656584]
[1741023340492,0.08978758,90743.0,90742.0,0.165303]
[1741023340681,0.08978758,90743.0,90734.0,0.1656584]
[1741023340682,0.0753,90742.0,90734.0,0.0003404]
[1741023340902,0.1,90740.0,90734.0,0.0003404]
[1741023341111,0.03444072,90739.0,90734.0,0.0003404]
[1741023341315,0.03251143,90738.0,90734.0,0.0003404]
[1741023341531,0.00192929,90737.0,90734.0,0.0023404]
[1741023341767,0.00192929,90737.0,90734.0,0.0033404]
[1741023341768,0.007,90735.0,90734.0,0.0033404]
[1741023341970,0.04584621,90735.0,90734.0,0.0033404]
[1741023342348,0.25216221,90735.0,90734.0,0.0023404]
[1741023342694,0.25216221,90735.0,90734.0,0.0003404]
[1741023342695,0.94683353,90735.0,90734.0,0.0003404]
[1741023342927,0.94683353,90735.0,90667.0,0.0484]
[1741023342928,0.81028385,90720.0,90667.0,0.0484]
[1741023343078,0.81028385,90720.0,90678.0,0.220559]
[1741023343280,0.84718145,90720.0,90677.0,0.220561]
[1741023343482,0.84718145,90720.0,90675.0,0.09778944]
[1741023343694,0.84718145,90720.0,90678.0,0.220558]
[1741023343921,0.84718145,90720.0,90675.0,0.09778944]
[1741023343922,0.4672976,90720.0,90675.0,0.09778944]
[1741023344071,0.4672976,90720.0,90696.0,0.220515]
[1741023344410,0.4672976,90720.0,90675.0,0.09778944]
[1741023344411,0.1672976,90720.0,90697.0,0.220512]
[1741023344629,0.1672976,90720.0,90719.0,0.16680362]
[1741023344630,0.1242976,90720.0,90719.0,0.16680362]
[1741023344807,0.09178617,90720.0,90719.0,0.16680362]
[1741023345007,0.09878617,90720.0,90719.0,0.16680362]
[1741023345506,0.09178617,90720.0,90719.0,0.16680362]
[1741023345817,0.10967904,90720.0,90719.0,0.16580362]
[1741023345971,0.10967904,90720.0,90719.0,0.16680362]
[1741023346373,0.0854,90720.0,90719.0,0.16580362]
[1741023346599,0.0864,90720.0,90719.0,0.16580362]
[1741023346853,0.001,90720.0,90719.0,0.46980362]
[1741023346998,0.09784109,90735.0,90734.0,0.465318]
[1741023347554,0.0854,90742.0,90741.0,0.465305]
[1741023348218,0.0001702,90744.0,90743.0,0.165302]
[1741023348431,0.0001702,90744.0,90743.0,0.164302]
[1741023350680,0.0855302,90744.0,90743.0,0.165302]
[1741023350884,0.0855302,90744.0,90743.0,0.172302]
[1741023351398,0.0855302,90744.0,90743.0,0.167302]
[1741023351597,0.0855302,90744.0,90743.0,0.17839743]
[1741023351800,0.0855302,90744.0,90743.0,0.17939743]
[1741023351998,0.0855302,90744.0,90743.0,0.17739743]
[1741023352450,0.0855302,90744.0,90743.0,0.18039743]
[1741023352649,0.0855302,90744.0,90743.0,0.169302]
[1741023353049,0.0855302,90744.0,90743.0,0.18034202]
[1741023353406,0.0855302,90744.0,90743.0,0.168302]
[1741023353554,0.0855302,90744.0,90743.0,0.170302]
[1741023353766,0.10280381,90744.0,90743.0,0.168302]
[1741023353966,0.10280381,90744.0,90743.0,0.165302]
[1741023354163,0.10280381,90744.0,90743.0,0.168302]
[1741023354370,0.10280381,90744.0,90743.0,0.171302]
[1741023354905,0.10280381,90744.0,90743.0,0.168302]
[1741023355048,0.10280381,90744.0,90743.0,0.172302]
[1741023356091,0.0855302,90744.0,90743.0,0.172302]
[1741023356305,0.0855302,90744.0,90743.0,0.599702]
[1741023356306,0.0001702,90744.0,90743.0,0.599702]
[1741023356512,0.0789,90789.0,90780.0,0.165234]
[1741023356694,0.08553,90781.0,90780.0,0.165234]
[1741023356892,0.08989056,90781.0,90780.0,0.165234]
[1741023357118,0.08549,90781.0,90780.0,0.165234]
[1741023357758,0.08994277,90781.0,90780.0,0.165234]
[1741023357911,0.09294277,90781.0,90780.0,0.165234]
[1741023358113,0.08994277,90781.0,90780.0,0.165234]
[1741023358447,0.08754221,90781.0,90780.0,0.165234]
[1741023359389,0.08854221,90781.0,90780.0,0.165234]
[1741023361014,0.08654221,90781.0,90780.0,0.165234]
[1741023361161,0.09197297,90781.0,90780.0,0.165234]
[1741023361367,0.08754221,90781.0,90780.0,0.165234]
[1741023361785,0.08554221,90781.0,90780.0,0.165234]
[1741023361984,0.00022221,90781.0,90780.0,0.465234]
[1741023362196,2.1e-07,90781.0,90780.0,0.47927485]
[1741023362530,9e-07,90787.0,90786.0,0.465223]
[1741023363452,9e-07,90787.0,90786.0,0.165223]
[1741023363817,9e-07,90787.0,90786.0,0.171223]
[1741023363995,9e-07,90787.0,90786.0,0.165223]
[1741023364498,9e-07,90787.0,90786.0,0.171223]
[1741023365648,9e-07,90787.0,90786.0,0.165223]
[1741023366036,9e-07,90787.0,90786.0,0.168223]
[1741023366235,9e-07,90787.0,90786.0,0.165223]
[1741023366596,9e-07,90787.0,90786.0,0.169223]
[1741023367146,9e-07,90787.0,90786.0,0.171223]
[1741023367333,9e-07,90787.0,90786.0,0.167223]
[1741023367538,9e-07,90787.0,90786.0,0.169223]
[1741023367734,9e-07,90787.0,90786.0,0.167223]
[1741023368160,9e-07,90787.0,90786.0,0.168223]
[1741023369346,9e-07,90787.0,90786.0,0.297123]
[1741023369530,0.0001698,90810.0,90809.0,0.465181]
[1741023369730,0.00056443,90810.0,90809.0,0.465181]
[1741023370850,0.00056443,90810.0,90809.0,0.468181]
[1741023371313,0.00056443,90810.0,90809.0,0.465181]
[1741023372074,4.3e-07,90814.0,90813.0,0.47971485]
[1741023372288,0.00011875,90814.0,90813.0,0.52821485]
[1741023372504,0.00011875,90814.0,90813.0,0.52721485]
[1741023373143,2.369e-05,90814.0,90813.0,0.52721485]
[1741023373341,2.369e-05,90814.0,90813.0,0.53421485]
[1741023374369,2.369e-05,90814.0,90813.0,0.59274641]
[1741023374587,2.369e-05,90814.0,90813.0,0.53421485]
[1741023374793,0.0138404,90835.0,90821.0,0.46516]
[1741023374794,0.00015389,90822.0,90821.0,0.46516]
[1741023374992,0.00021472,90822.0,90821.0,0.47970085]
[1741023375706,4e-05,90900.0,90840.0,0.220166]
[1741023375881,4e-05,90900.0,90871.0,0.465069]
[1741023375882,0.0797,90899.0,90871.0,0.465069]
[1741023376233,0.00207087,90872.0,90871.0,0.55431224]
[1741023376483,4e-05,90900.0,90872.0,0.3]
[1741023376700,4e-05,90900.0,90899.0,0.465018]
[1741023376890,7e-05,90904.0,90903.0,0.165011]
[1741023377174,0.01271522,90926.0,90900.0,0.33283746]
[1741023377304,0.08712493,90925.0,90911.0,0.3]
[1741023377510,0.00641529,90925.0,90880.0,0.28092076]
[1741023377762,0.0852,90924.0,90910.0,0.28092076]
[1741023377969,0.00192492,90923.0,90900.0,0.28092076]
[1741023378202,0.09161528,90923.0,90901.0,0.3]
[1741023378320,0.08712492,90923.0,90903.0,0.3]
[1741023378515,0.0852,90923.0,90910.0,0.28092076]
[1741023378753,0.0131097,90926.0,90925.0,0.164971]
[1741023379174,0.0131097,90926.0,90925.0,0.163971]
[1741023379396,0.0131097,90926.0,90925.0,0.17851185]
[1741023379599,0.0131097,90926.0,90925.0,0.22070842]
[1741023379812,0.0131097,90926.0,90925.0,0.55354588]
[1741023380172,0.0131097,90926.0,90925.0,0.49099765]
[1741023380573,0.0131097,90926.0,90925.0,0.48699765]
[1741023380799,0.0131097,90926.0,90925.0,0.49399765]
[1741023381131,0.0131097,90926.0,90925.0,0.4724568]
[1741023381320,0.0142795,90926.0,90925.0,0.3]
[1741023381702,0.10284911,90926.0,90925.0,0.3]
[1741023381907,0.0983995,90926.0,90925.0,0.307]
[1741023382732,0.0983995,90926.0,90925.0,0.467971]
[1741023382961,0.10284733,90926.0,90925.0,0.471971]
[1741023383133,0.0983995,90926.0,90925.0,0.471971]
[1741023383295,0.0132795,90926.0,90925.0,0.471971]
[1741023383697,0.0132795,90926.0,90925.0,0.467971]
[1741023383901,0.0132795,90926.0,90925.0,0.303]
[1741023384126,0.0132795,90926.0,90925.0,0.468971]
[1741023384380,0.0132795,90926.0,90925.0,0.467971]
[1741023385019,0.0132795,90926.0,90925.0,0.3]
[1741023385221,0.0132795,90926.0,90925.0,0.301]
[1741023385428,0.0132795,90926.0,90925.0,0.465971]
[1741023385542,0.0132795,90926.0,90925.0,0.001]
[1741023385750,0.0132795,90926.0,90925.0,0.004]
[1741023385954,0.01772443,90926.0,90908.0,0.01080532]
[1741023386158,0.01772443,90926.0,90925.0,0.003]
[1741023386355,0.01772443,90926.0,90925.0,0.004]
[1741023386556,0.01772443,90926.0,90925.0,0.001]
[1741023386783,0.11772443,90926.0,90925.0,0.001]
[1741023386989,0.01772443,90926.0,90925.0,0.002]
[1741023387186,0.11772443,90926.0,90925.0,0.002]
[1741023387390,0.20280443,90926.0,90925.0,0.002]
[1741023387642,0.1,90914.0,90860.0,0.28092076]
[1741023387821,0.28092076,90910.0,90860.0,0.28092076]
[1741023388022,0.28092076,90900.0,90860.0,0.01131712]
[1741023388220,0.28092076,90890.0,90868.0,0.165072]
[1741023388504,0.00192589,90889.0,90841.0,0.00154071]
[1741023388689,0.00192589,90889.0,90848.0,0.00154071]
[1741023388871,0.08508,90888.0,90874.0,0.220083]
[1741023389099,0.08966605,90888.0,90879.0,0.165052]
[1741023389254,0.08966605,90888.0,90885.0,0.220056]
[1741023389583,0.081,90898.0,90853.0,0.01454085]
[1741023389735,0.08700573,90897.0,90862.0,6.087e-05]
[1741023392162,0.00192561,90896.0,90885.0,0.001]
[1741023392358,0.22295861,90896.0,90885.0,0.001]
[1741023392580,0.00458062,90895.0,90885.0,0.001]
[1741023392881,0.00192591,90894.0,90885.0,0.001]
[1741023393080,0.00192591,90894.0,90869.0,0.3]
[1741023393285,0.00192591,90894.0,90832.0,0.330279]
[1741023393286,0.046,90889.0,90829.0,0.0472]
[1741023393558,0.0019261,90888.0,90846.0,6.087e-05]
[1741023393774,0.0019261,90888.0,90866.0,0.165077]
[1741023393953,0.00458062,90887.0,90846.0,6.087e-05]
[1741023394166,0.04899832,90886.0,90846.0,6.087e-05]
[1741023394375,0.00192614,90886.0,90846.0,6.087e-05]
[1741023394549,0.00192614,90886.0,90848.0,0.3]
[1741023394906,0.01725282,90877.0,90848.0,0.3]
[1741023395019,0.3253262,90876.0,90846.0,6.087e-05]
[1741023395229,0.07580723,90875.0,90846.0,6.087e-05]
[1741023395443,0.0787,90869.0,90846.0,0.00106087]
[1741023395796,0.08700662,90868.0,90846.0,6.087e-05]
[1741023396022,0.3234,90867.0,90846.0,6.087e-05]
[1741023396214,0.00192647,90866.0,90860.0,0.165088]
[1741023396441,0.00455403,90866.0,90857.0,0.220124]
[1741023396648,0.00455403,90866.0,90847.0,0.22015]
[1741023396796,0.00192639,90865.0,90846.0,0.00106087]
[1741023397022,0.00192639,90865.0,90856.0,0.165095]
[1741023397229,0.00455403,90864.0,90846.0,6.087e-05]
[1741023397379,0.32532647,90863.0,90846.0,6.087e-05]
[1741023397645,0.32790311,90862.0,90846.0,6.087e-05]
[1741023397842,0.00192645,90861.0,90846.0,6.087e-05]
[1741023398233,0.00642637,90861.0,90860.0,0.165089]
[1741023398437,0.00449992,90861.0,90860.0,0.165089]
[1741023398615,0.00449992,90861.0,90860.0,0.465089]
[1741023398847,0.3234,90884.0,90883.0,0.165047]
[1741023399062,0.3234,90895.0,90894.0,0.165027]
[1741023399268,0.3234,90895.0,90862.0,0.00154051]
[1741023399269,0.3234,90907.0,90906.0,0.165005]
[1741023399479,0.40848,90907.0,90887.0,0.3]
[1741023399750,0.00192543,90906.0,90881.0,0.01086241]
[1741023399962,0.00192543,90906.0,90899.0,0.165016]
[1741023400168,0.08508,90907.0,90904.0,0.165009]
[1741023400346,0.08547424,90907.0,90906.0,0.165005]
[1741023400541,0.08547424,90907.0,90902.0,0.220015]
[1741023400861,0.00139424,90907.0,90902.0,0.165012]
[1741023401020,0.08508,90906.0,90902.0,0.164012]
[1741023401222,0.08508,90906.0,90887.0,0.220053]
[1741023401223,0.08508,90906.0,90895.0,0.220033]
[1741023401461,0.00192545,90905.0,90884.0,0.3]
[1741023401721,0.00192545,90905.0,90876.0,0.3]
[1741023401944,0.00192545,90905.0,90894.0,0.165027]
[1741023402122,0.00192545,90905.0,90872.0,0.01097086]
[1741023402327,0.00192545,90905.0,90863.0,0.33828495]
[1741023402328,0.3228171,90904.0,90863.0,0.33828495]
[1741023402670,0.00192576,90903.0,90891.0,0.165031]
[1741023402890,0.3228171,90902.0,90844.0,0.1487]
[1741023403203,0.01724919,90894.0,90893.0,0.165029]
[1741023403568,0.01724919,90894.0,90870.0,0.220094]
[1741023403569,0.01724919,90894.0,90871.0,0.3]
[1741023403950,0.00192576,90893.0,90890.0,0.165033]
[1741023404123,0.01724919,90894.0,90871.0,0.31125144]
[1741023404420,0.01724919,90894.0,90893.0,0.165029]
[1741023404633,0.001,90905.0,90873.0,0.630127]
[1741023404923,0.08508,90906.0,90885.0,0.0003396]
[1741023405167,0.08508,90906.0,90890.0,0.003]
[1741023405339,0.00453941,90905.0,90904.0,0.165009]
[1741023405535,0.08508,90905.0,90904.0,0.165009]
[1741023405680,0.00453941,90905.0,90904.0,0.165009]
[1741023406041,0.08508,90905.0,90893.0,0.220038]
[1741023406272,0.08508,90905.0,90886.0,0.220055]
[1741023406484,0.00453941,90904.0,90903.0,0.165011]
[1741023407063,0.08608,90905.0,90904.0,0.165009]
[1741023407290,0.08508,90905.0,90904.0,0.165009]
[1741023407492,0.08508,90905.0,90904.0,0.160009]
[1741023407647,0.08508,90905.0,90904.0,0.159009]
[1741023408466,0.08508,90905.0,90904.0,0.160009]
[1741023409838,0.08508,90905.0,90904.0,0.159009]
[1741023410019,0.08508,90905.0,90904.0,0.162009]
[1741023412334,0.10232535,90905.0,90904.0,0.162009]
[1741023413123,0.01724535,90905.0,90904.0,0.162009]
[1741023413419,0.10228535,90905.0,90904.0,0.462009]
[1741023414882,0.08504,90905.0,90904.0,0.462009]
[1741023416452,0.00039424,90907.0,90906.0,0.465005]
[1741023416725,0.08543424,90907.0,90906.0,0.465005]
[1741023418057,0.08543424,90907.0,90906.0,0.468005]
[1741023419192,0.08543424,90907.0,90906.0,0.465005]
[1741023419517,0.08543424,90907.0,90906.0,0.468005]
[1741023420438,0.08539424,90907.0,90906.0,0.468005]
[1741023422416,0.08639424,90907.0,90906.0,0.468005]
[1741023422647,0.00139424,90907.0,90906.0,0.468005]
[1741023422883,0.08539424,90907.0,90906.0,0.003]
[1741023423066,0.16779424,90907.0,90906.0,0.006]
[1741023423270,0.1724071,90907.0,90906.0,0.006]
[1741023423705,0.1724071,90907.0,90906.0,0.003]
[1741023423706,0.16779424,90907.0,90906.0,0.003]
[1741023423860,0.12969424,90907.0,90878.0,0.01127191]
[1741023424102,0.13069424,90907.0,90906.0,0.165005]
[1741023424436,0.16979424,90907.0,90906.0,0.165005]
[1741023425747,0.01152633,90923.0,90905.0,0.3]
[1741023425955,0.01152633,90923.0,90922.0,0.464976]
[1741023426167,8.2e-07,90931.0,90923.0,0.3]
[1741023426364,8.2e-07,90931.0,90930.0,0.463962]
[1741023427190,8.2e-07,90931.0,90930.0,0.462962]
[1741023427944,0.00100082,90931.0,90930.0,0.466962]
[1741023428142,0.00200082,90931.0,90930.0,0.47534952]
[1741023428337,0.00200082,90931.0,90930.0,0.468962]
[1741023428875,0.00200082,90931.0,90930.0,0.304]
[1741023429215,0.08596082,90931.0,90930.0,0.004]
[1741023429416,0.09055994,90931.0,90930.0,0.168962]
[1741023429674,0.09155994,90931.0,90930.0,0.175962]
[1741023429877,0.00659994,90931.0,90930.0,0.168962]
[1741023430081,0.00200082,90931.0,90930.0,0.164962]
[1741023430280,0.00100082,90931.0,90930.0,0.165962]
[1741023430480,8.2e-07,90931.0,90930.0,0.164962]
[1741023430827,0.00117072,90931.0,90930.0,0.172962]
[1741023431071,0.00117072,90931.0,90930.0,0.171962]
[1741023431394,0.00117072,90931.0,90910.0,0.29424649]
[1741023431395,0.2239,90905.0,90857.0,0.330186]
[1741023431621,0.20886,90905.0,90904.0,0.00045805]
[1741023431809,0.21349764,90905.0,90904.0,0.00045805]
[1741023432189,0.12853764,90905.0,90904.0,0.16546705]
[1741023432393,0.00463764,90905.0,90904.0,0.46546705]
[1741023432614,0.08959764,90905.0,90904.0,0.46546705]
[1741023432835,0.08496,90905.0,90904.0,0.46546705]
[1741023433008,0.08796,90905.0,90904.0,0.46546705]
[1741023433378,0.003,90905.0,90904.0,0.46546705]
[1741023433803,0.08496,90912.0,90905.0,0.3]
[1741023434030,0.08496,90912.0,90911.0,0.164996]
[1741023434354,0.08496,90912.0,90911.0,0.464996]
[1741023436672,0.00192536,90919.0,90912.0,0.164993]
[1741023436886,0.0019251,90925.0,90911.0,0.164996]
[1741023437047,0.00461623,90918.0,90910.0,0.3]
[1741023437241,0.006,90923.0,90910.0,0.3]
[1741023437442,0.003,90920.0,90910.0,0.3]
[1741023437860,0.002,90919.0,90910.0,0.3]
[1741023438066,0.002,90919.0,90904.0,0.30045805]
[1741023438265,0.002,90919.0,90904.0,0.00045805]
[1741023438465,0.00654275,90918.0,90912.0,0.464994]
[1741023438753,0.002,90919.0,90890.0,0.0003398]
[1741023438754,0.265032,90891.0,90890.0,0.0003398]
[1741023439000,0.165052,90880.0,90879.0,0.02038504]
[1741023439249,0.26697837,90880.0,90879.0,0.02038504]
[1741023439429,0.4164916,90880.0,90879.0,0.02038504]
[1741023439634,0.36954393,90858.0,90824.0,0.002]
[1741023439959,0.25964985,90849.0,90824.0,0.002]
[1741023440166,0.35964985,90849.0,90824.0,0.002]
[1741023440509,0.39192132,90849.0,90824.0,0.002]
[1741023440717,0.43018753,90849.0,90848.0,0.09818368]
[1741023441162,0.53651698,90849.0,90848.0,0.09818368]
[1741023441364,0.53651698,90849.0,90824.0,0.002]
[1741023441365,0.1,90838.0,90824.0,0.002]
[1741023441612,0.1,90833.0,90824.0,0.00206087]
[1741023441899,0.08720743,90832.0,90824.0,0.00206087]
[1741023442099,0.0916735,90832.0,90824.0,0.00206087]
[1741023442253,0.2568145,90832.0,90824.0,0.00206087]
[1741023442449,0.08974607,90832.0,90824.0,0.00206087]
[1741023442649,0.01726324,90831.0,90824.0,0.00206087]
[1741023442853,0.00192743,90830.0,90824.0,0.00206087]
[1741023443105,0.00446607,90829.0,90824.0,0.00206087]
[1741023443305,0.0019272,90828.0,90824.0,0.00206087]
[1741023443535,0.165152,90825.0,90824.0,0.00206087]
[1741023443669,0.00192745,90825.0,90824.0,0.00206087]
[1741023443865,0.0164683,90825.0,90824.0,0.00206087]
[1741023444079,0.02093437,90825.0,90824.0,0.00206087]
[1741023445011,0.00639352,90825.0,90824.0,0.00206087]
[1741023445789,0.00839352,90825.0,90824.0,0.00206087]
[1741023445979,0.00639352,90825.0,90824.0,0.00206087]
[1741023446180,0.00347576,90825.0,90824.0,0.00206087]
[1741023446378,0.00541105,90825.0,90824.0,0.00206087]
[1741023447066,0.001,90825.0,90824.0,0.00206087]
[1741023447272,0.00587866,90825.0,90824.0,0.00206087]
[1741023447444,0.001,90825.0,90824.0,0.00206087]
[1741023448119,0.001,90825.0,90824.0,0.16721487]
[1741023448120,0.086,90825.0,90824.0,0.16721487]
[1741023449059,0.085,90825.0,90824.0,0.16721487]
[1741023449256,0.085,90825.0,90824.0,0.00206087]
[1741023449459,0.08956225,90825.0,90824.0,0.00206087]
[1741023450091,0.08956225,90825.0,90824.0,0.16721487]
[1741023450529,0.085,90825.0,90824.0,0.00206087]
[1741023450712,0.00456225,90825.0,90824.0,0.16721487]
[1741023450919,0.08504,90825.0,90824.0,0.16721487]
[1741023451399,0.08960225,90825.0,90824.0,0.16721487]
[1741023451602,0.09060225,90825.0,90824.0,0.16721487]
[1741023451801,0.01087862,90843.0,90824.0,0.00206087]
[1741023452023,0.08516,90842.0,90824.0,0.00206087]
[1741023452341,0.08972225,90842.0,90838.0,0.165127]
[1741023452785,0.00456225,90842.0,90841.0,0.165123]
[1741023452961,0.08960225,90842.0,90841.0,0.165123]
[1741023453113,0.08504,90842.0,90841.0,0.165123]
[1741023453315,0.08504,90842.0,90841.0,0.465123]
[1741023454971,0.1022977,90842.0,90841.0,0.465123]
[1741023455964,0.08504,90842.0,90841.0,0.465123]
[1741023456559,0.0001703,90842.0,90841.0,0.465123]
[1741023460644,3e-07,90842.0,90841.0,0.465123]
[1741023460845,3e-07,90842.0,90841.0,0.511223]
[1741023461047,0.08504,90882.0,90841.0,0.51933592]
[1741023461247,0.083,90902.0,90901.0,0.165014]
[1741023461437,0.08504,90902.0,90874.0,0.00154029]
[1741023461597,0.09115484,90902.0,90901.0,0.165014]
[1741023461849,0.08504,90902.0,90901.0,0.165014]
[1741023462011,0.09115484,90902.0,90901.0,0.165014]
[1741023462209,0.08504,90902.0,90901.0,0.165014]
[1741023462621,0.09154883,90902.0,90900.0,0.165016]
[1741023462839,0.08543399,90902.0,90890.0,0.220044]
[1741023463172,0.08543399,90902.0,90901.0,0.165014]
[1741023463660,0.40883399,90902.0,90901.0,0.165014]
[1741023464020,0.41329518,90902.0,90901.0,0.165014]
[1741023464535,0.32825518,90902.0,90901.0,0.165014]
[1741023464734,0.34550376,90902.0,90901.0,0.165014]
[1741023466043,0.00485518,90902.0,90901.0,0.165014]
[1741023466243,0.00485518,90902.0,90901.0,0.465014]
[1741023466422,0.00039399,90902.0,90901.0,0.465014]
[1741023469912,0.00056429,90902.0,90901.0,0.465014]
[1741023471375,0.07826429,90902.0,90895.0,0.220034]
[1741023471584,0.1,90889.0,90845.0,0.0485]
[1741023471933,0.01454085,90879.0,90862.0,0.220113]
[1741023472125,0.01454085,90879.0,90865.0,0.165078]
[1741023472426,0.00954085,90877.0,90864.0,0.165081]
[1741023472599,0.085,90876.0,90831.0,0.3]
[1741023472805,0.3234,90875.0,90863.0,0.22011]
[1741023473010,0.32860613,90875.0,90864.0,0.165081]
[1741023473247,0.32860613,90875.0,90863.0,0.165083]
[1741023473440,0.32860613,90875.0,90864.0,0.16508]
[1741023473644,0.32860613,90875.0,90827.0,0.00823951]
[1741023473847,0.06972516,90874.0,90827.0,0.00823951]
[1741023474026,0.4065,90873.0,90830.0,0.01117827]
[1741023474227,0.01454085,90869.0,90847.0,0.165111]
[1741023474427,0.1,90865.0,90824.0,0.0023406]
[1741023474814,0.01454085,90861.0,90824.0,0.0023406]
[1741023475054,0.01454085,90857.0,90840.0,0.165124]
[1741023475253,0.01454085,90857.0,90841.0,0.165123]
[1741023475498,0.01454085,90859.0,90838.0,0.22017]
[1741023475621,0.01454085,90857.0,90838.0,0.165127]
[1741023475812,0.01454085,90857.0,90824.0,0.00240147]
[1741023476018,0.02576777,90857.0,90824.0,0.01349571]
[1741023476216,0.00513574,90856.0,90824.0,0.00240147]
[1741023476422,0.01454085,90854.0,90840.0,0.220166]
[1741023476754,0.01454085,90852.0,90824.0,0.00240147]
[1741023476953,0.01454085,90850.0,90824.0,0.00240147]
[1741023477173,0.01454085,90850.0,90825.0,0.220203]
[1741023477381,0.01454085,90850.0,90824.0,0.00240147]
[1741023477382,0.00513574,90849.0,90824.0,0.00240147]
[1741023477720,0.23469085,90847.0,90824.0,0.00240147]
[1741023477905,0.01454085,90848.0,90825.0,0.220203]
[1741023478098,0.01454085,90850.0,90842.0,0.165121]
[1741023478418,0.01454085,90846.0,90826.0,0.16515]
[1741023478599,0.01454085,90846.0,90824.0,0.00240147]
[1741023478600,0.3234,90845.0,90824.0,0.00240147]
[1741023478811,0.3234,90845.0,90825.0,0.220203]
[1741023478812,0.01454085,90841.0,90825.0,0.220203]
[1741023479021,0.01454085,90833.0,90824.0,0.00240147]
[1741023479334,0.01454085,90831.0,90824.0,0.00240147]
[1741023479755,0.01454085,90831.0,90826.0,0.220201]
[1741023479902,0.01454085,90829.0,90826.0,0.220201]
[1741023480103,0.01454085,90829.0,90828.0,0.165145]
[1741023480284,0.01454085,90839.0,90838.0,0.165129]
[1741023480488,0.09954085,90839.0,90838.0,0.165129]
[1741023480957,0.01726085,90842.0,90839.0,0.165127]
[1741023481150,0.01726085,90842.0,90841.0,0.165123]
[1741023481354,0.085,90842.0,90841.0,0.165123]
[1741023481653,0.085,90845.0,90844.0,0.165118]
[1741023481859,0.33794085,90860.0,90859.0,0.16509]
[1741023481996,0.4084,90860.0,90859.0,0.16309]
[1741023482402,0.3234,90872.0,90871.0,0.165069]
[1741023482659,0.085,90872.0,90871.0,0.165069]
[1741023482956,0.085,90872.0,90871.0,0.164069]
[1741023483658,0.085,90872.0,90869.0,0.220095]
[1741023483659,0.01454085,90871.0,90843.0,0.3]
[1741023483859,0.01454085,90871.0,90870.0,0.16507]
[1741023484062,0.09652429,90885.0,90884.0,0.165045]
[1741023484203,0.085,90885.0,90854.0,0.440266]